fUSD/lending_fUSD_20240513
["ID","MTS","AMOUNT","RATE_DAILY","PERIOD"]
[326956209,1715644256656,-500.0,0.00012998,2]
[326956210,1715644256665,-495.03,0.00012998,2]
[326956211,1715644256676,-500.0,0.00012998,2]
[326956212,1715644256685,-500.0,0.00012998,2]
[326956213,1715644256695,-500.0,0.00012998,2]
[326956214,1715644256705,-500.0,0.00012998,2]
[326956215,1715644256715,-607.824355,0.00012998,2]
[326956216,1715644256725,-500.0,0.00012998,2]
[326956217,1715644256737,-500.0,0.00012998,2]
[326956218,1715644256747,-287.68,0.00012998,2]
[326956219,1715644256758,-500.0,0.00012998,2]
[326956220,1715644256768,-500.0,0.00012998,2]
[326956221,1715644256779,-500.0,0.00012998,2]
[326956222,1715644256790,-500.0,0.00012998,2]
[326956223,1715644256800,-500.0,0.00012998,2]
[326956224,1715644256810,-500.0,0.00012998,2]
[326956225,1715644256822,-500.0,0.00012998,2]
[326956226,1715644256831,-500.0,0.00012998,2]
[326956227,1715644256846,-500.0,0.00012998,2]
[326956228,1715644256855,-500.0,0.00012998,2]
[326956229,1715644256864,-500.0,0.00012998,2]
[326956230,1715644256873,-500.0,0.00012998,2]
[326956231,1715644256883,-500.0,0.00012998,2]
[326956232,1715644256892,-500.0,0.00012998,2]
[326956233,1715644256901,-607.824355,0.00012998,2]
[326956234,1715644256911,-500.0,0.00012998,2]
[326956235,1715644256921,-500.0,0.00012998,2]
[326956236,1715644256929,-4435.31,0.00012998,2]
[326956237,1715644256939,-4435.31,0.00012998,2]
[326956238,1715644256948,-500.0,0.00012998,2]
[326956239,1715644256957,-4435.31,0.00012998,2]
[326956240,1715644256967,-500.0,0.00012998,2]
[326956241,1715644256976,-157.921845,0.00012998,2]
[326956242,1715644256985,-353.51,0.00012998,2]
[326956243,1715644256994,-500.0,0.00012998,2]
[326956244,1715644257003,-500.0,0.00012998,2]
[326956245,1715644257012,-151.0,0.00012998,2]
[326956246,1715644257021,-500.0,0.00012998,2]
[326956247,1715644257031,-557.96,0.00012998,2]
[326956248,1715644257039,-500.0,0.00012998,2]
[326956249,1715644257049,-500.0,0.00012998,2]
[326956250,1715644257059,-500.0,0.00012998,2]
[326956251,1715644257068,-500.0,0.00012998,2]
[326956252,1715644257077,-151.0,0.00012998,2]
[326956253,1715644257086,-157.921845,0.00012998,2]
[326956254,1715644257095,-500.0,0.00012998,2]
[326956255,1715644257104,-500.0,0.00012998,2]
[326956256,1715644257113,-500.0,0.00012998,2]
[326956257,1715644257122,-500.0,0.00012998,2]
[326956258,1715644257132,-500.0,0.00012998,2]
[326956259,1715644257140,-500.0,0.00012998,2]
[326956260,1715644257150,-500.0,0.00012998,2]
[326956261,1715644257159,-500.0,0.00012998,2]
[326956262,1715644257168,-500.0,0.00012998,2]
[326956263,1715644257178,-500.0,0.00012998,2]
[326956264,1715644257206,-500.0,0.00012998,2]
[326956265,1715644257216,-500.0,0.00012998,2]
[326956266,1715644257225,-500.0,0.00012998,2]
[326956267,1715644257234,-562.78,0.00012998,2]
[326956268,1715644257243,-500.0,0.00012998,2]
[326956269,1715644257252,-500.0,0.00012998,2]
[326956270,1715644257262,-202.6,0.00012998,2]
[326956271,1715644257271,-500.0,0.00012998,2]
[326956272,1715644257280,-500.0,0.00012998,2]
[326956273,1715644257290,-500.0,0.00012998,2]
[326956274,1715644257299,-500.0,0.00012998,2]
[326956275,1715644257308,-500.0,0.00012998,2]
[326956276,1715644257317,-500.0,0.00012998,2]
[326956277,1715644257327,-320.90844795,0.00012998,2]
[326956278,1715644257335,-500.0,0.00012998,2]
[326956279,1715644257344,-265.93,0.00012998,2]
[326956280,1715644257353,-394.146593,0.00012998,2]
[326956281,1715644257362,-500.0,0.00012998,2]
[326956282,1715644257373,-500.0,0.00012998,2]
[326956283,1715644257383,-1384.59,0.00012998,2]
[326956284,1715644257393,-500.0,0.00012998,2]
[326956285,1715644257404,-1384.59,0.00012998,2]
[326956286,1715644257414,-154.84,0.00012998,2]
[326956287,1715644257423,-500.0,0.00012998,2]
[326956288,1715644257433,-1384.59,0.00012998,2]
[326956289,1715644257442,-500.0,0.00012998,2]
[326956290,1715644257451,-540.19,0.00012998,2]
[326956291,1715644257461,-151.0,0.00012998,2]
[326956292,1715644257471,-394.146593,0.00012998,2]
[326956293,1715644257481,-500.0,0.00012998,2]
[326956294,1715644257490,-500.0,0.00012998,2]
[326956295,1715644257499,-500.0,0.00012998,2]
[326956296,1715644257508,-500.0,0.00012998,2]
[326956297,1715644257518,-357.39,0.00012998,2]
[326956298,1715644257529,-500.0,0.00012998,2]
[326956299,1715644257539,-500.0,0.00012998,2]
[326956300,1715644257549,-304.47,0.00012998,2]
[326956301,1715644257558,-199.863504,0.00012998,2]
[326956302,1715644257568,-500.0,0.00012998,2]
[326956303,1715644257578,-500.0,0.00012998,2]
[326956304,1715644257588,-500.0,0.00012998,2]
[326956305,1715644257597,-151.0,0.00012998,2]
[326956306,1715644257606,-500.0,0.00012998,2]
[326956307,1715644257616,-500.0,0.00012998,2]
[326956308,1715644257625,-500.0,0.00012998,2]
[326956309,1715644257635,-1313.77,0.00012998,2]
[326956310,1715644257645,-1313.77,0.00012998,2]
[326956311,1715644257656,-1313.77,0.00012998,2]
[326956312,1715644257665,-500.0,0.00012998,2]
[326956313,1715644257674,-500.0,0.00012998,2]
[326956314,1715644257684,-500.0,0.00012998,2]
[326956315,1715644257694,-425.37,0.00012998,2]
[326956316,1715644257705,-500.0,0.00012998,2]
[326956317,1715644257714,-500.0,0.00012998,2]
[326956318,1715644257723,-500.0,0.00012998,2]
[326956319,1715644257733,-151.0,0.00012998,2]
[326956320,1715644257742,-500.0,0.00012998,2]
[326956321,1715644257752,-634.05,0.00012998,2]
[326956322,1715644257763,-487.564433,0.00012998,2]
[326956323,1715644257773,-500.0,0.00012998,2]
[326956324,1715644257783,-330.297245,0.00012998,2]
[326956325,1715644257794,-500.0,0.00012998,2]
[326956326,1715644257804,-500.0,0.00012998,2]
[326956327,1715644257814,-500.0,0.00012998,2]
[326956328,1715644257823,-292.29,0.00012998,2]
[326956329,1715644257833,-151.0,0.00012998,2]
[326956330,1715644257851,-500.0,0.00012998,2]
[326956331,1715644257860,-178.156304,0.00012998,2]
[326956332,1715644257871,-500.0,0.00012998,2]
[326956333,1715644257880,-487.564433,0.00012998,2]
[326956334,1715644257890,-500.0,0.00012998,2]
[326956335,1715644257899,-500.0,0.00012998,2]
[326956336,1715644257909,-500.0,0.00012998,2]
[326956337,1715644257919,-500.0,0.00012998,2]
[326956338,1715644257929,-500.0,0.00012998,2]
[326956339,1715644257940,-500.0,0.00012998,2]
[326956340,1715644257949,-175.77,0.00012998,2]
[326956341,1715644257959,-330.297245,0.00012998,2]
[326956342,1715644257970,-151.0,0.00012998,2]
[326956343,1715644257979,-1005.37,0.00012998,2]
[326956344,1715644257989,-500.0,0.00012998,2]
[326956345,1715644257999,-1005.37,0.00012998,2]
[326956346,1715644258008,-500.0,0.00012998,2]
[326956347,1715644258020,-151.0,0.00012998,2]
[326956348,1715644258030,-1005.37,0.00012998,2]
[326956349,1715644258041,-500.0,0.00012998,2]
[326956350,1715644258051,-500.0,0.00012998,2]
[326956351,1715644258061,-506.97,0.00012998,2]
[326956352,1715644258070,-500.0,0.00012998,2]
[326956353,1715644258079,-500.0,0.00012998,2]
[326956354,1715644258091,-500.0,0.00012998,2]
[326956355,1715644258100,-151.0,0.00012998,2]
[326956356,1715644258109,-500.0,0.00012998,2]
[326956357,1715644258118,-500.0,0.00012998,2]
[326956358,1715644258128,-500.0,0.00012998,2]
[326956359,1715644258136,-500.0,0.00012998,2]
[326956360,1715644258147,-500.0,0.00012998,2]
[326956361,1715644258159,-500.0,0.00012998,2]
[326956362,1715644258169,-151.0,0.00012998,2]
[326956363,1715644258178,-1531.66,0.00012998,2]
[326956364,1715644258187,-265.35,0.00012998,2]
[326956365,1715644258197,-1531.66,0.00012998,2]
[326956366,1715644258206,-1531.66,0.00012998,2]
[326956367,1715644258215,-500.0,0.00012998,2]
[326956368,1715644258225,-500.0,0.00012998,2]
[326956369,1715644258234,-500.0,0.00012998,2]
[326956370,1715644258244,-500.0,0.00012998,2]
[326956371,1715644258254,-500.0,0.00012998,2]
[326956372,1715644258263,-500.0,0.00012998,2]
[326956373,1715644258273,-358.503051,0.00012998,2]
[326956374,1715644258282,-500.0,0.00012998,2]
[326956375,1715644258291,-500.0,0.00012998,2]
[326956376,1715644258301,-500.0,0.00012998,2]
[326956377,1715644258310,-421.656107,0.00012998,2]
[326956378,1715644258319,-500.0,0.00012998,2]
[326956379,1715644258328,-500.0,0.00012998,2]
[326956380,1715644258337,-151.0,0.00012998,2]
[326956381,1715644258346,-358.503051,0.00012998,2]
[326956382,1715644258355,-500.0,0.00012998,2]
[326956383,1715644258364,-500.0,0.00012998,2]
[326956384,1715644258374,-500.0,0.00012998,2]
[326956385,1715644258383,-484.95,0.00012998,2]
[326956386,1715644258392,-648.26,0.00012998,2]
[326956387,1715644258402,-500.0,0.00012998,2]
[326956388,1715644258412,-500.0,0.00012998,2]
[326956389,1715644258421,-421.656107,0.00012998,2]
[326956390,1715644258432,-500.0,0.00012998,2]
[326956391,1715644258442,-500.0,0.00012998,2]
[326956392,1715644258453,-500.0,0.00012998,2]
[326956393,1715644258462,-500.0,0.00012998,2]
[326956394,1715644258471,-500.0,0.00012998,2]
[326956395,1715644258480,-500.0,0.00012998,2]
[326956396,1715644258489,-205.53,0.00012998,2]
[326956397,1715644258498,-151.0,0.00012998,2]
[326956398,1715644258507,-611.48,0.00012998,2]
[326956399,1715644258516,-151.0,0.00012998,2]
[326956400,1715644258526,-500.0,0.00012998,2]
[326956401,1715644258535,-500.0,0.00012998,2]
[326956402,1715644258544,-500.0,0.00012998,2]
[326956403,1715644258554,-500.0,0.00012998,2]
[326956404,1715644258563,-424.17,0.00012998,2]
[326956405,1715644258572,-151.0,0.00012998,2]
[326956406,1715644258581,-637.62,0.00012998,2]
[326956407,1715644258590,-637.62,0.00012998,2]
[326956408,1715644258599,-637.62,0.00012998,2]
[326956409,1715644258607,-500.0,0.00012998,2]
[326956410,1715644258616,-500.0,0.00012998,2]
[326956411,1715644258625,-500.0,0.00012998,2]
[326956412,1715644258634,-151.0,0.00012998,2]
[326956413,1715644258643,-500.0,0.00012998,2]
[326956414,1715644258652,-500.0,0.00012998,2]
[326956415,1715644258661,-323.72,0.00012998,2]
[326956416,1715644258670,-514.73,0.00012998,2]
[326956417,1715644258679,-500.0,0.00012998,2]
[326956418,1715644258689,-151.0,0.00012998,2]
[326956419,1715644258699,-500.0,0.00012998,2]
[326956420,1715644258709,-570.47,0.00012998,2]
[326956421,1715644258719,-294.62,0.00012998,2]
[326956422,1715644258728,-500.0,0.00012998,2]
[326956423,1715644258738,-521.863741,0.00012998,2]
[326956424,1715644258747,-198.9,0.00012998,2]
[326956425,1715644258757,-151.0,0.00012998,2]
[326956426,1715644258767,-198.47,0.00012998,2]
[326956427,1715644258776,-500.0,0.00012998,2]
[326956428,1715644258785,-500.0,0.00012998,2]
[326956429,1715644258795,-500.0,0.00012998,2]
[326956430,1715644258804,-521.863741,0.00012998,2]
[326956431,1715644258813,-500.0,0.00012998,2]
[326956432,1715644258823,-500.0,0.00012998,2]
[326956433,1715644258832,-500.0,0.00012998,2]
[326956434,1715644258846,-764.25,0.00012998,2]
[326956435,1715644258855,-500.0,0.00012998,2]
[326956436,1715644258864,-151.0,0.00012998,2]
[326956437,1715644258873,-764.25,0.00012998,2]
[326956438,1715644258885,-500.0,0.00012998,2]
[326956439,1715644258894,-764.25,0.00012998,2]
[326956440,1715644258902,-500.0,0.00012998,2]
[326956441,1715644258911,-500.0,0.00012998,2]
[326956442,1715644258922,-500.0,0.00012998,2]
[326956443,1715644258931,-500.0,0.00012998,2]
[326956444,1715644258940,-151.0,0.00012998,2]
[326956445,1715644258949,-500.0,0.00012998,2]
[326956446,1715644258959,-500.0,0.00012998,2]
[326956447,1715644258968,-1000.0,0.00012998,2]
[326956448,1715644258977,-1000.0,0.00012998,2]
[326956449,1715644258985,-1000.0,0.00012998,2]
[326956450,1715644258994,-1000.0,0.00012998,2]
[326956451,1715644259003,-1000.0,0.00012998,2]
[326956452,1715644259012,-1000.0,0.00012998,2]
[326956453,1715644259021,-1000.0,0.00012998,2]
[326956454,1715644259030,-1000.0,0.00012998,2]
[326956455,1715644259039,-591.0,0.00012998,2]
[326956456,1715644259048,-1000.0,0.00012998,2]
[326956457,1715644259057,-1000.0,0.00012998,2]
[326956458,1715644259065,-1000.0,0.00012998,2]
[326956459,1715644259074,-1000.0,0.00012998,2]
[326956460,1715644259083,-1000.0,0.00012998,2]
[326956461,1715644259091,-1000.0,0.00012998,2]
[326956462,1715644259100,-1000.0,0.00012998,2]
[326956463,1715644259109,-1000.0,0.00012998,2]
[326956464,1715644259118,-1000.0,0.00012998,2]
[326956465,1715644259127,-1000.0,0.00012998,2]
[326956466,1715644259135,-1000.0,0.00012998,2]
[326956467,1715644259144,-1000.0,0.00012998,2]
[326956468,1715644259153,-1000.0,0.00012998,2]
[326956469,1715644259161,-825.0,0.00012998,2]
[326956470,1715644259171,-533.93053191,0.00012999,2]
[326956471,1715644259181,-1050.19942002,0.00012999,3]
[326956472,1715644259192,-509.76,0.00012999,2]
[326956473,1715644259202,-181.05,0.00012999,2]
[326956474,1715644259211,-266.08,0.00012999,2]
[326956475,1715644259220,-377.33,0.00012999,2]
[326956476,1715644259230,-276.59,0.00012999,2]
[326956477,1715644259239,-465.16,0.00012999,2]
[326956478,1715644259250,-581.29,0.00012999,2]
[326956479,1715644259258,-292.83,0.00012999,2]
[326956480,1715644259269,-559.72,0.00012999,2]
[326956481,1715644259278,-389.58,0.00012999,2]
[326956482,1715644259287,-153.8,0.00012999,2]
[326956483,1715644259298,-234.77,0.00012999,2]
[326956484,1715644259307,-301.06,0.00012999,2]
[326956485,1715644259315,-162.83,0.00012999,2]
[326956486,1715644259326,-290.18,0.00012999,2]
[326956487,1715644259337,-320.56,0.00012999,2]
[326956488,1715644259347,-522.1,0.00012999,2]
[326956489,1715644259357,-387.86,0.00012999,2]
[326956490,1715644259367,-578.4,0.00012999,2]
[326956491,1715644259376,-500.0,0.00012999,2]
[326956492,1715644259385,-260.64,0.00012999,2]
[326956493,1715644259396,-500.0,0.00012999,2]
[326956494,1715644259406,-500.0,0.00012999,2]
[326956495,1715644259415,-500.0,0.00012999,2]
[326956496,1715644259427,-547.31760661,0.00012999,2]
[326956497,1715644259436,-477.85,0.00012999,2]
[326956498,1715644259446,-308.68,0.00012999,2]
[326956499,1715644259457,-398.79,0.00012999,2]
[326956500,1715644259468,-210.23,0.00012999,2]
[326956501,1715644259477,-464.4,0.00012999,2]
[326956502,1715644259486,-500.0,0.00012999,2]
[326956503,1715644259495,-323.39,0.00012999,2]
[326956504,1715644259505,-153.33,0.00012999,2]
[326956505,1715644259514,-622.54,0.00012999,2]
[326956506,1715644259523,-435.28,0.00012999,2]
[326956507,1715644259532,-238.78,0.00012999,2]
[326956508,1715644259543,-500.0,0.00012999,2]
[326956509,1715644259554,-616.57,0.00012999,2]
[326956510,1715644259708,-244.47,0.00012999,2]
[326956511,1715644259718,-500.0,0.00012999,2]
[326956512,1715644259728,-500.0,0.00012999,2]
[326956513,1715644259738,-209.75,0.00012999,2]
[326956514,1715644259748,-575.64,0.00012999,2]
[326956515,1715644259757,-256.92,0.00012999,2]
[326956516,1715644259766,-151.0,0.00012999,2]
[326956517,1715644259775,-500.0,0.00012999,2]
[326956518,1715644259786,-473.97,0.00012999,2]
[326956519,1715644259795,-500.0,0.00012999,2]
[326956520,1715644259804,-430.53,0.00012999,2]
[326956521,1715644259813,-500.0,0.00012999,2]
[326956522,1715644259823,-500.0,0.00012999,2]
[326956523,1715644259833,-157.4,0.00012999,2]
[326956524,1715644259847,-151.0,0.00012999,2]
[326956525,1715644259856,-500.0,0.00012999,2]
[326956526,1715644259865,-500.0,0.00012999,2]
[326956527,1715644259875,-607.25,0.00012999,2]
[326956528,1715644259885,-151.0,0.00012999,2]
[326956529,1715644259894,-324.76,0.00012999,2]
[326956530,1715644259903,-151.0,0.00012999,2]
[326956531,1715644259913,-307.72,0.00012999,2]
[326956532,1715644259922,-244.62,0.00012999,2]
[326956533,1715644259932,-151.0,0.00012999,2]
[326956534,1715644259942,-507.23,0.00012999,2]
[326956535,1715644259952,-500.0,0.00012999,2]
[326956536,1715644259961,-445.3,0.00012999,2]
[326956537,1715644259971,-500.0,0.00012999,2]
[326956538,1715644259980,-500.0,0.00012999,2]
[326956539,1715644259989,-500.5,0.00012999,2]
[326956540,1715644259998,-500.0,0.00012999,2]
[326956541,1715644260009,-500.0,0.00012999,2]
[326956542,1715644260018,-322.37,0.00012999,2]
[326956543,1715644260028,-500.0,0.00012999,2]
[326956544,1715644260037,-205.11,0.00012999,2]
[326956545,1715644260047,-178.56,0.00012999,2]
[326956546,1715644260056,-500.0,0.00012999,2]
[326956547,1715644260064,-422.49,0.00012999,2]
[326956548,1715644260073,-358.15,0.00012999,2]
[326956549,1715644260082,-500.0,0.00012999,2]
[326956550,1715644260092,-524.4,0.00012999,2]
[326956551,1715644260101,-151.0,0.00012999,2]
[326956552,1715644260111,-258.117142,0.00012999,2]
[326956553,1715644260122,-151.0,0.00012999,2]
[326956554,1715644260132,-151.0,0.00012999,2]
[326956555,1715644260143,-522.8,0.00012999,2]
[326956556,1715644260153,-500.0,0.00012999,2]
[326956557,1715644260163,-500.0,0.00012999,2]
[326956558,1715644260173,-520.34,0.00012999,2]
[326956559,1715644260182,-151.0,0.00012999,2]
[326956560,1715644260192,-151.0,0.00012999,2]
[326956561,1715644260201,-383.21,0.00012999,2]
[326956562,1715644260210,-168.05,0.00012999,2]
[326956563,1715644260220,-454.9,0.00012999,2]
[326956564,1715644260229,-410.6,0.00012999,2]
[326956565,1715644260238,-500.0,0.00012999,2]
[326956566,1715644260248,-500.0,0.00012999,2]
[326956567,1715644260257,-245.83,0.00012999,2]
[326956568,1715644260267,-218.96,0.00012999,2]
[326956569,1715644260277,-406.31,0.00012999,2]
[326956570,1715644260286,-277.69,0.00012999,2]
[326956571,1715644260296,-151.0,0.00012999,2]
[326956572,1715644260306,-500.0,0.00012999,2]
[326956573,1715644260315,-151.0,0.00012999,2]
[326956574,1715644260324,-271.35,0.00012999,2]
[326956575,1715644260334,-151.0,0.00012999,2]
[326956576,1715644260343,-151.0,0.00012999,2]
[326956577,1715644260354,-500.0,0.00012999,2]
[326956578,1715644260366,-489.35,0.00012999,2]
[326956579,1715644260376,-382.28,0.00012999,2]
[326956580,1715644260388,-638.73,0.00012999,2]
[326956581,1715644260400,-151.0,0.00012999,2]
[326956582,1715644260410,-151.0,0.00012999,2]
[326956583,1715644260420,-500.0,0.00012999,2]
[326956584,1715644260431,-500.0,0.00012999,2]
[326956585,1715644260443,-500.0,0.00012999,2]
[326956586,1715644260453,-151.0,0.00012999,2]
[326956587,1715644260465,-151.0,0.00012999,2]
[326956588,1715644260476,-622.15,0.00012999,2]
[326956589,1715644260488,-151.0,0.00012999,2]
[326956590,1715644260499,-151.0,0.00012999,2]
[326956591,1715644260509,-500.0,0.00012999,2]
[326956592,1715644260518,-500.0,0.00012999,2]
[326956593,1715644260527,-223.47,0.00012999,2]
[326956594,1715644260538,-151.0,0.00012999,2]
[326956595,1715644260548,-500.0,0.00012999,2]
[326956596,1715644260558,-151.0,0.00012999,2]
[326956597,1715644260567,-480.74,0.00012999,2]
[326956598,1715644260576,-520.79,0.00012999,2]
[326956599,1715644260586,-500.0,0.00012999,2]
[326956600,1715644260596,-431.08,0.00012999,2]
[326956601,1715644260606,-151.0,0.00012999,2]
[326956602,1715644260615,-151.0,0.00012999,2]
[326956603,1715644260626,-151.0,0.00012999,2]
[326956604,1715644260635,-151.0,0.00012999,2]
[326956605,1715644260644,-460.69,0.00012999,2]
[326956606,1715644260654,-500.0,0.00012999,2]
[326956607,1715644260664,-376.72,0.00012999,2]
[326956608,1715644260675,-151.0,0.00012999,2]
[326956609,1715644260684,-151.0,0.00012999,2]
[326956610,1715644260695,-285.27,0.00012999,2]
[326956611,1715644260706,-387.35,0.00012999,2]
[326956612,1715644260716,-159.75,0.00012999,2]
[326956613,1715644260726,-300.82,0.00012999,2]
[326956614,1715644260736,-151.0,0.00012999,2]
[326956615,1715644260746,-151.0,0.00012999,2]
[326956616,1715644260756,-152.096027,0.00012999,2]
[326956617,1715644260766,-152.096027,0.00012999,2]
[326956618,1715644260776,-151.0,0.00012999,2]
[326956619,1715644260787,-151.0,0.00012999,2]
[326956620,1715644260796,-152.096027,0.00012999,2]
[326956621,1715644260806,-152.096027,0.00012999,2]
[326956622,1715644260815,-151.0,0.00012999,2]
[326956623,1715644260824,-151.0,0.00012999,2]
[326956624,1715644260834,-151.313221,0.00012999,2]
[326956625,1715644260847,-151.0,0.00012999,2]
[326956626,1715644260857,-151.0,0.00012999,2]
[326956627,1715644260866,-151.0,0.00012999,2]
[326956628,1715644260875,-151.0,0.00012999,2]
[326956629,1715644260886,-500.0,0.00012999,2]
[326956630,1715644260895,-201.47,0.00012999,2]
[326956631,1715644260905,-342.01,0.00012999,2]
[326956632,1715644260914,-151.647225,0.00012999,2]
[326956633,1715644260926,-500.0,0.00012999,2]
[326956634,1715644260936,-370.33,0.00012999,2]
[326956635,1715644260945,-171.981628,0.00012999,2]
[326956636,1715644260954,-171.981628,0.00012999,2]
[326956637,1715644260964,-171.981628,0.00012999,2]
[326956638,1715644260973,-171.981628,0.00012999,2]
[326956639,1715644260982,-151.0,0.00012999,2]
[326956640,1715644260991,-151.0,0.00012999,2]
[326956641,1715644261000,-211.25,0.00012999,2]
[326956642,1715644261011,-500.0,0.00012999,2]
[326956643,1715644261020,-439.66,0.00012999,2]
[326956644,1715644261029,-500.0,0.00012999,2]
[326956645,1715644261038,-488.49,0.00012999,2]
[326956646,1715644261049,-151.0,0.00012999,2]
[326956647,1715644261058,-151.0,0.00012999,2]
[326956648,1715644261068,-218.39,0.00012999,2]
[326956649,1715644261078,-151.0,0.00012999,2]
[326956650,1715644261087,-151.0,0.00012999,2]
[326956651,1715644261098,-168.46,0.00012999,2]
[326956652,1715644261110,-331.97,0.00012999,2]
[326956653,1715644261120,-171.81,0.00012999,2]
[326956654,1715644261130,-151.0,0.00012999,2]
[326956655,1715644261140,-151.0,0.00012999,2]
[326956656,1715644261149,-237.52,0.00012999,2]
[326956657,1715644261159,-151.0,0.00012999,2]
[326956658,1715644261169,-241.32502,0.00012999,2]
[326956659,1715644261179,-230.89,0.00012999,2]
[326956660,1715644261189,-151.0,0.00012999,2]
[326956661,1715644261198,-151.0,0.00012999,2]
[326956662,1715644261207,-151.0,0.00012999,2]
[326956663,1715644261217,-151.0,0.00012999,2]
[326956664,1715644261226,-216.53,0.00012999,2]
[326956665,1715644261243,-500.0,0.00012999,2]
[326956666,1715644261258,-500.0,0.00012999,2]
[326956667,1715644261272,-318.74,0.00012999,2]
[326956668,1715644261283,-351.92,0.00012999,2]
[326956669,1715644261297,-500.0,0.00012999,2]
[326956670,1715644261311,-284.31,0.00012999,2]
[326956671,1715644261325,-544.27,0.00012999,2]
[326956672,1715644261338,-151.0,0.00012999,2]
[326956673,1715644261351,-151.0,0.00012999,2]
[326956674,1715644261367,-500.0,0.00012999,2]
[326956675,1715644261381,-500.0,0.00012999,2]
[326956676,1715644261394,-395.6,0.00012999,2]
[326956677,1715644261406,-421.62,0.00012999,2]
[326956678,1715644261422,-304.46,0.00012999,2]
[326956679,1715644261435,-151.0,0.00012999,2]
[326956680,1715644261447,-151.0,0.00012999,2]
[326956681,1715644261458,-163.83,0.00012999,2]
[326956682,1715644261470,-151.0,0.00012999,2]
[326956683,1715644261483,-151.0,0.00012999,2]
[326956684,1715644261496,-326.85,0.00012999,2]
[326956685,1715644261509,-151.0,0.00012999,2]
[326956686,1715644261524,-351.94,0.00012999,2]
[326956687,1715644261539,-151.0,0.00012999,2]
[326956688,1715644261553,-183.17,0.00012999,2]
[326956689,1715644261564,-151.0,0.00012999,2]
[326956690,1715644261574,-151.0,0.00012999,2]
[326956691,1715644261587,-151.0,0.00012999,2]
[326956692,1715644261601,-151.0,0.00012999,2]
[326956693,1715644261615,-151.0,0.00012999,2]
[326956694,1715644261626,-151.0,0.00012999,2]
[326956695,1715644261638,-387.81,0.00012999,2]
[326956696,1715644261651,-151.0,0.00012999,2]
[326956697,1715644261663,-151.0,0.00012999,2]
[326956698,1715644261674,-151.0,0.00012999,2]
[326956699,1715644261686,-151.0,0.00012999,2]
[326956700,1715644261697,-179.46,0.00012999,2]
[326956701,1715644261709,-151.0,0.00012999,2]
[326956702,1715644261721,-151.0,0.00012999,2]
[326956703,1715644261733,-151.0,0.00012999,2]
[326956704,1715644261745,-151.0,0.00012999,2]
[326956705,1715644261756,-245.27306,0.00012999,2]
[326956706,1715644261768,-500.0,0.00012999,2]
[326956707,1715644261780,-500.0,0.00012999,2]
[326956708,1715644261791,-151.0,0.00012999,2]